bitfinex-derivatives/quotes_BTCF0:USTF0_20250902
["timestamp","ask_amount","ask_price","bid_price","bid_amount"]
[1756777152309,0.007,109130.0,109120.0,2.23596817]
[1756777153902,0.007,109130.0,109120.0,1.02476817]
[1756777154106,0.007,109130.0,109120.0,1.87516817]
[1756777157402,0.007,109130.0,109120.0,0.54576137]
[1756777157608,0.007,109130.0,109120.0,1.95760439]
[1756777157809,0.007,109130.0,109120.0,1.87512817]
[1756777158007,0.007,109130.0,109120.0,1.95760439]
[1756777161206,0.007,109130.0,109120.0,2.31840439]
[1756777161406,0.007,109130.0,109120.0,1.95760439]
[1756777163214,0.007,109130.0,109120.0,2.02348511]
[1756777163409,0.007,109130.0,109120.0,1.70152182]
[1756777167620,0.007,109130.0,109120.0,1.46200209]
[1756777167819,0.007,109130.0,109120.0,0.85116182]
[1756777168020,0.007,109130.0,109120.0,1.70136182]
[1756777173320,0.007,109130.0,109120.0,1.6354811]
[1756777173525,0.007,109130.0,109120.0,1.71795732]
[1756777174824,0.007,109130.0,109120.0,2.07875732]
[1756777177727,0.007,109130.0,109120.0,1.22855732]
[1756777177918,0.007,109130.0,109120.0,2.07863732]
[1756777179227,0.007,109130.0,109120.0,1.83911759]
[1756777179525,0.007,109130.0,109120.0,2.07863732]
[1756777180720,0.007,109130.0,109120.0,2.07859732]
[1756777181824,0.007,109130.0,109120.0,1.22855732]
[1756777182128,0.007,109130.0,109120.0,1.71775732]
[1756777185234,0.007,109130.0,109120.0,1.6352811]
[1756777191547,0.007,109130.0,109120.0,2.0877184]
[1756777192245,0.007,109130.0,109120.0,2.2032253]
[1756777192445,0.007,109130.0,109120.0,2.0877184]
[1756777193040,0.007,109130.0,109120.0,2.17001889]
[1756777193640,0.007,109130.0,109120.0,2.07838159]
[1756777195449,0.007,109130.0,109120.0,2.17001729]
[1756777195650,0.007,109130.0,109120.0,2.65953702]
[1756777195849,0.007,109130.0,109120.0,2.69274343]
[1756777196051,0.007,109130.0,109120.0,2.4532237]
[1756777196947,0.37899089,109160.0,109120.0,2.65736343]
[1756777197148,0.01819089,109160.0,109150.0,1.02685516]
[1756777197339,0.01819089,109160.0,109150.0,2.24649516]
[1756777197744,0.01819089,109160.0,109150.0,1.91536973]
[1756777198847,0.02019089,109160.0,109150.0,1.91536973]
[1756777199347,0.02019089,109160.0,109150.0,1.98094155]
[1756777199650,0.02219089,109160.0,109150.0,1.98094155]
[1756777200345,0.02219089,109160.0,109150.0,1.13130155]
[1756777200551,0.02219089,109160.0,109150.0,1.98082155]
[1756777200752,0.02219089,109160.0,109150.0,1.99003737]
[1756777202943,0.02219089,109160.0,109150.0,1.98995737]
[1756777204852,0.02219089,109160.0,109150.0,1.14051737]
[1756777205153,0.02019089,109160.0,109150.0,1.98987737]
[1756777205545,0.01819089,109160.0,109150.0,1.99087737]
[1756777207144,0.01819089,109160.0,109150.0,2.08248287]
[1756777207552,0.3608,109200.0,109190.0,0.04807]
[1756777207853,0.7108,109200.0,109190.0,0.79021973]
[1756777208239,0.3608,109200.0,109190.0,0.79021973]
[1756777208439,0.6108,109200.0,109190.0,0.79021973]
[1756777208643,0.3608,109200.0,109190.0,0.79021973]
[1756777209254,0.3648,109200.0,109190.0,0.79021973]
[1756777209447,0.004,109200.0,109190.0,1.15101973]
[1756777209752,0.008,109200.0,109190.0,1.15101973]
[1756777209954,0.008,109200.0,109190.0,0.44526]
[1756777210155,0.008,109200.0,109190.0,1.53397973]
[1756777210650,0.008,109200.0,109190.0,1.17317973]
[1756777210866,0.7288,109200.0,109190.0,1.17317973]
[1756777212657,0.9788,109200.0,109190.0,0.08446]
[1756777212958,1.21831973,109200.0,109190.0,0.04807]
[1756777213854,0.85831973,109200.0,109190.0,0.04807]
[1756777214157,0.9488,109200.0,109190.0,0.08446]
[1756777215656,0.9588,109200.0,109190.0,0.08446]
[1756777216756,0.9578,109200.0,109190.0,0.08446]
[1756777217752,0.9538,109200.0,109190.0,0.08446]
[1756777218052,0.9568,109200.0,109190.0,0.32397973]
[1756777219857,0.6368,109200.0,109190.0,0.32397973]
[1756777220048,0.6168,109200.0,109190.0,0.32397973]
[1756777220243,0.9668,109200.0,109190.0,0.32397973]
[1756777220449,0.9368,109200.0,109190.0,0.32397973]
[1756777222258,0.9574447,109200.0,109190.0,0.32397973]
[1756777222858,0.9368,109200.0,109190.0,0.32397973]
[1756777223260,0.95744529,109200.0,109190.0,0.32397973]
[1756777223461,0.9368,109200.0,109190.0,0.32397973]
[1756777225553,0.9368,109200.0,109190.0,0.32372312]
[1756777228862,0.3768,109200.0,109190.0,0.56298624]
[1756777229070,0.02669229,109200.0,109190.0,1.17378624]
[1756777229258,0.006,109200.0,109190.0,1.58535874]
[1756777229558,0.006,109200.0,109190.0,1.26535874]
[1756777229961,0.006,109200.0,109190.0,1.60452926]
[1756777230553,0.006,109200.0,109190.0,1.18295676]
[1756777232070,0.006,109200.0,109190.0,2.02238624]
[1756777232267,0.006,109200.0,109190.0,1.54386]
[1756777232464,0.006,109200.0,109190.0,1.78312312]
[1756777233064,0.006,109200.0,109190.0,0.68452312]
[1756777233275,0.59526312,109200.0,109190.0,1.17228312]
[1756777234267,0.59526312,109200.0,109190.0,0.32372312]
[1756777234467,1.21602316,109200.0,109190.0,0.89659]
[1756777234964,0.97676004,109200.0,109190.0,0.89659]
[1756777235371,0.97676004,109200.0,109190.0,1.13585312]
[1756777235565,0.97676004,109200.0,109190.0,0.89659]
[1756777236075,0.98676004,109200.0,109190.0,1.17245312]
[1756777236278,0.98677135,109200.0,109190.0,1.17245312]
[1756777236473,0.98677135,109200.0,109190.0,0.32393312]
[1756777242472,0.38750823,109200.0,109190.0,0.32393312]
[1756777242874,0.02670823,109200.0,109190.0,0.32393312]
[1756777243377,0.006,109200.0,109190.0,0.32393312]
[1756777243978,0.38751526,109200.0,109190.0,0.32393312]
[1756777244482,0.3668,109200.0,109190.0,0.32393312]
[1756777245285,0.006,109200.0,109190.0,0.32393312]
[1756777245689,0.006,109200.0,109190.0,0.68473312]
[1756777248192,0.006,109200.0,109190.0,1.53297312]
[1756777252078,0.006,109200.0,109190.0,1.17217312]
[1756777252282,0.006,109200.0,109190.0,0.93279]
[1756777252489,0.006,109200.0,109190.0,1.17205312]
[1756777253487,0.92606312,109200.0,109190.0,1.17205312]
[1756777253677,0.92606312,109200.0,109190.0,0.08467]
[1756777253880,1.16532624,109200.0,109190.0,0.08467]
[1756777254086,0.92606312,109200.0,109190.0,0.08467]
[1756777254280,0.92606312,109200.0,109190.0,0.32393312]
[1756777254682,0.92606312,109200.0,109190.0,0.08467]
[1756777254986,0.6868,109200.0,109190.0,0.32393312]
[1756777255194,0.93606312,109200.0,109190.0,0.32393312]
[1756777255690,0.98606312,109200.0,109190.0,0.32393312]
[1756777255890,0.3668,109200.0,109190.0,0.32393312]
[1756777257193,0.6968,109200.0,109190.0,0.32393312]
[1756777257487,0.6968,109200.0,109190.0,1.17197312]
[1756777257488,0.93606312,109200.0,109190.0,1.17197312]
[1756777259789,0.3668,109200.0,109190.0,1.17197312]
[1756777259986,0.006,109200.0,109190.0,1.17197312]
[1756777260580,0.006,109200.0,109190.0,1.17189312]
[1756777262791,0.006,109200.0,109190.0,0.32393312]
[1756777262992,0.006,109200.0,109190.0,1.17181312]
[1756777263288,0.02669779,109200.0,109190.0,1.17181312]
[1756777263691,0.02669779,109200.0,109190.0,1.66107624]
[1756777263901,0.006,109200.0,109190.0,2.48344924]
[1756777264081,0.006,109200.0,109190.0,2.78828418]
[1756777264397,0.01861711,109240.0,109230.0,0.083]
[1756777264589,0.40008961,109240.0,109230.0,0.32226312]
[1756777265092,0.63935273,109240.0,109230.0,0.32226312]
[1756777265287,0.64854019,109240.0,109230.0,0.32226312]
[1756777265484,0.40927707,109240.0,109230.0,0.32226312]
[1756777265688,0.41727707,109240.0,109230.0,0.32226312]
[1756777266190,0.65654019,109240.0,109230.0,0.32226312]
[1756777266395,0.72907053,109240.0,109230.0,0.32226312]
[1756777267099,0.73507053,109240.0,109230.0,0.32226312]
[1756777267302,0.47513491,109240.0,109230.0,0.32226312]
[1756777267695,0.71439803,109240.0,109230.0,0.32226312]
[1756777268593,0.06763137,109290.0,109280.0,0.04771]
[1756777268794,0.01826003,109290.0,109280.0,0.92226624]
[1756777269297,0.01826003,109290.0,109280.0,1.76994624]
[1756777270496,0.01826003,109290.0,109280.0,1.40914624]
[1756777270701,0.02426003,109290.0,109280.0,1.40914624]
[1756777270902,0.02926003,109290.0,109280.0,1.40914624]
[1756777271101,0.02926003,109290.0,109280.0,1.76994624]
[1756777271306,0.02926003,109290.0,109280.0,0.92226624]
[1756777271505,0.02026003,109290.0,109280.0,1.58981332]
[1756777271697,0.02326003,109290.0,109280.0,1.58981332]
[1756777273890,0.02326003,109290.0,109280.0,1.68131092]
[1756777274498,0.02326003,109290.0,109280.0,0.74225332]
[1756777274702,0.02326003,109290.0,109280.0,1.22877332]
[1756777275005,0.02326003,109290.0,109280.0,1.58957332]
[1756777275304,0.02326003,109290.0,109280.0,1.68107092]
[1756777275497,0.02326003,109290.0,109280.0,1.58957332]
[1756777276302,0.02326003,109290.0,109280.0,1.6623552]
[1756777276502,0.02326003,109290.0,109280.0,2.30236612]
[1756777277097,0.02326003,109290.0,109280.0,2.65236612]
[1756777277997,0.02326003,109290.0,109280.0,2.30236612]
[1756777278608,0.02326003,109290.0,109280.0,2.65236612]
[1756777279408,0.005,109290.0,109280.0,2.65236612]
[1756777280098,0.3879992,109330.0,109290.0,0.0914812]
[1756777280294,0.71898485,109330.0,109320.0,0.38145332]
[1756777280498,0.71898485,109330.0,109320.0,1.22845332]
[1756777281317,0.97098485,109330.0,109320.0,1.22845332]
[1756777281601,0.36418485,109330.0,109320.0,1.22845332]
[1756777282807,0.36218485,109330.0,109320.0,1.22845332]
[1756777283010,0.36518485,109330.0,109320.0,0.92994]
[1756777283208,0.36518485,109330.0,109320.0,1.22845332]
[1756777284006,0.007,109330.0,109320.0,1.61843034]
[1756777284310,0.007,109330.0,109320.0,1.31991702]
[1756777285602,0.007,109330.0,109320.0,1.68071702]
[1756777285805,0.007,109330.0,109320.0,0.83371702]
[1756777286011,0.005,109330.0,109320.0,1.58893332]
[1756777286706,0.005,109330.0,109320.0,2.62920695]
[1756777287205,0.005,109330.0,109320.0,1.40252695]
[1756777287416,0.005,109330.0,109320.0,1.94839266]
[1756777287609,0.001,109330.0,109320.0,1.94839266]
[1756777288405,0.001,109330.0,109320.0,1.95439266]
[1756777288607,0.001,109330.0,109320.0,2.26439266]
[1756777289612,0.3608,109360.0,109350.0,0.09659]
[1756777289813,0.6808,109360.0,109350.0,0.09659]
[1756777291805,0.6808,109360.0,109350.0,0.09859]
[1756777297714,0.6808,109360.0,109350.0,0.04971]
[1756777298120,0.6808,109360.0,109350.0,0.0857]
[1756777298318,0.70121219,109360.0,109350.0,0.10006]
[1756777298924,0.70121219,109360.0,109350.0,0.04971]
[1756777300823,0.70121219,109360.0,109350.0,0.002]
[1756777301523,0.70121219,109360.0,109350.0,0.02615]
[1756777302022,1.24746454,109360.0,109350.0,0.002]
[1756777303118,0.70121219,109360.0,109350.0,0.002]
[1756777303313,0.70221219,109360.0,109340.0,0.08389]
[1756777303522,0.3608,109350.0,109340.0,0.08389]
[1756777303720,0.72121219,109350.0,109340.0,0.08389]
[1756777305828,0.72121219,109350.0,109340.0,0.08589]
[1756777306414,0.72121219,109350.0,109340.0,0.63214235]
[1756777308626,0.72121219,109350.0,109340.0,1.47822235]
[1756777308831,0.72121219,109350.0,109340.0,0.33589]
[1756777309325,0.72121219,109350.0,109340.0,0.33889]
[1756777309525,0.72121219,109350.0,109340.0,0.34089]
[1756777310028,0.72121219,109350.0,109340.0,0.3029]
[1756777310328,0.72121219,109350.0,109340.0,0.33789]
[1756777310720,0.72121219,109350.0,109340.0,0.0519]
[1756777310926,0.72121219,109350.0,109340.0,0.08789]
[1756777312425,0.72121219,109350.0,109340.0,0.38414235]
[1756777312626,0.72121219,109350.0,109340.0,0.38314235]
[1756777313322,0.72121219,109350.0,109340.0,0.38414235]
[1756777313630,0.72121219,109350.0,109340.0,0.3264681]
[1756777314221,0.72121219,109350.0,109340.0,0.2904781]
[1756777314529,0.72121219,109350.0,109340.0,0.02815]
[1756777314730,0.95979029,109350.0,109340.0,0.004]
[1756777314923,0.95979029,109350.0,109340.0,0.02815]
[1756777315123,0.72121219,109350.0,109340.0,0.02815]
[1756777315329,0.72121219,109350.0,109340.0,0.0519]
[1756777315526,0.72121219,109350.0,109340.0,0.004]
[1756777316026,0.72121219,109350.0,109340.0,0.003]
[1756777316932,1.56713219,109350.0,109340.0,0.001]
[1756777317633,2.05571029,109350.0,109340.0,0.001]
[1756777317832,1.81713219,109350.0,109340.0,0.001]
[1756777318032,2.05571029,109350.0,109340.0,0.001]
[1756777319330,1.80571029,109350.0,109340.0,0.001]
[1756777320532,2.34365973,109350.0,109340.0,0.001]
[1756777320828,2.10504163,109350.0,109340.0,0.001]
[1756777321032,1.85504163,109350.0,109340.0,0.001]
[1756777322436,1.00916163,109350.0,109340.0,0.001]
[1756777322630,1.85504163,109350.0,109340.0,0.001]
[1756777323536,1.80567029,109350.0,109340.0,0.001]
[1756777324931,0.72121219,109350.0,109340.0,0.001]
[1756777325238,1.56709219,109350.0,109340.0,0.3239181]
[1756777325428,1.56705219,109350.0,109340.0,0.3239181]
[1756777325923,0.72121219,109350.0,109340.0,0.5739181]
[1756777326338,0.7008,109350.0,109340.0,0.5739181]
[1756777326841,0.34,109350.0,109340.0,0.5739181]
[1756777328041,0.34,109350.0,109340.0,0.59428163]
[1756777328336,0.7008,109350.0,109340.0,0.001]
[1756777328534,1.46666919,109350.0,109340.0,0.001]
[1756777328735,1.22809109,109350.0,109340.0,0.001]
[1756777328932,1.58531299,109350.0,109340.0,0.3228281]
[1756777329138,1.56487159,109350.0,109340.0,0.5728281]
[1756777329331,0.71907159,109350.0,109340.0,0.5728281]
[1756777330738,0.35827159,109350.0,109340.0,0.5728281]
[1756777331329,0.01827159,109350.0,109340.0,0.5728281]
[1756777331535,0.3608,109360.0,109350.0,0.09745]
[1756777331745,0.7208,109360.0,109350.0,0.3360281]
[1756777332643,0.7218,109360.0,109350.0,0.3360281]
[1756777334151,0.7208,109360.0,109350.0,0.3420281]
[1756777335344,1.2093781,109360.0,109350.0,0.006]
[1756777335637,0.99123391,109360.0,109350.0,0.004]
[1756777335840,2.07553201,109360.0,109350.0,0.004]
[1756777336036,2.07553201,109360.0,109350.0,0.003]
[1756777336535,2.09377109,109360.0,109350.0,0.003]
[1756777336736,2.09377109,109360.0,109350.0,0.002]
[1756777336929,2.09477109,109360.0,109350.0,0.002]
[1756777337132,2.09477109,109360.0,109320.0,1.07913181]
[1756777337345,0.3608,109340.0,109330.0,0.2853081]
[1756777337534,0.7208,109340.0,109330.0,0.2853081]
[1756777337848,0.3608,109340.0,109330.0,0.3218281]
[1756777338141,0.3608,109340.0,109330.0,0.5718281]
[1756777339534,0.3608,109340.0,109330.0,0.5758281]
[1756777339842,0.3608,109340.0,109330.0,0.5778281]
[1756777340040,0.3608,109350.0,109340.0,0.08325]
[1756777340345,0.3708,109350.0,109340.0,0.3218281]
[1756777340848,0.39123748,109350.0,109340.0,0.3218281]
[1756777341143,0.43123748,109350.0,109340.0,0.3218281]
[1756777341439,0.4108,109350.0,109340.0,0.5718281]
[1756777342333,0.4108,109350.0,109340.0,0.5728281]
[1756777342533,0.4108,109350.0,109340.0,0.5738281]
[1756777342939,0.4108,109350.0,109340.0,0.5748281]
[1756777343538,0.7108,109350.0,109340.0,0.5768281]
[1756777343846,0.4408,109350.0,109340.0,0.5768281]
[1756777344345,0.7208,109350.0,109340.0,0.05173]
[1756777345030,0.3608,109350.0,109340.0,0.04873]
[1756777345237,0.6708,109350.0,109340.0,0.05073]
[1756777345945,0.6708,109350.0,109340.0,0.04973]
[1756777346141,1.1593781,109350.0,109340.0,0.003]
[1756777346744,0.9208,109350.0,109340.0,0.08625]
[1756777346936,0.9308,109350.0,109340.0,0.3248281]
[1756777347338,0.4208,109350.0,109340.0,0.3248281]
[1756777347941,0.6908,109350.0,109340.0,0.3248281]
[1756777348341,0.6908,109350.0,109340.0,0.3238281]
[1756777348950,0.4208,109350.0,109340.0,0.3248281]
[1756777349136,0.06,109350.0,109340.0,1.4204281]
[1756777349541,0.37903908,109360.0,109350.0,0.09745]
[1756777349846,0.3608,109360.0,109350.0,0.57451704]
[1756777351041,0.3608,109360.0,109350.0,0.33598352]
[1756777352046,0.3608,109360.0,109350.0,0.33698352]
[1756777352450,0.3608,109360.0,109350.0,0.57551704]
[1756777352947,0.3608,109360.0,109350.0,0.57751704]
[1756777353148,0.3608,109370.0,109360.0,0.08325]
[1756777353452,0.3608,109370.0,109360.0,0.56031704]
[1756777353453,0.71122456,109370.0,109360.0,0.56031704]
[1756777355250,0.42832851,109400.0,109390.0,0.04701]
[1756777355551,0.76937623,109400.0,109390.0,0.32123352]
[1756777356446,0.77137623,109400.0,109390.0,0.32123352]
[1756777358345,0.77237623,109400.0,109390.0,0.32123352]
[1756777362053,0.75195717,109400.0,109390.0,0.32123352]
[1756777364259,0.75195717,109400.0,109390.0,0.55976704]
[1756777364457,0.75195717,109400.0,109390.0,0.32123352]
[1756777364660,0.75195717,109400.0,109390.0,0.80976704]
[1756777364857,0.3638,109400.0,109390.0,0.80976704]
[1756777365253,0.003,109400.0,109390.0,1.65496704]
[1756777365757,0.003,109400.0,109390.0,1.67557912]
[1756777366765,0.003,109400.0,109390.0,0.83037912]
[1756777366962,0.003,109400.0,109390.0,1.67553912]
[1756777368563,0.003,109400.0,109390.0,2.03633912]
[1756777369761,0.003,109400.0,109390.0,2.36633912]
[1756777370162,0.59933352,109430.0,109420.0,0.04701]
[1756777370163,0.3608,109430.0,109420.0,0.04701]
[1756777370366,0.6808,109430.0,109420.0,0.55976704]
[1756777371155,0.9308,109430.0,109410.0,0.92774]
[1756777371359,0.6808,109430.0,109420.0,0.55976704]
[1756777372663,0.6828,109430.0,109420.0,0.55976704]
[1756777373759,0.6828,109430.0,109420.0,0.0827]
[1756777373960,0.92133352,109430.0,109420.0,0.28554352]
[1756777374156,0.322,109430.0,109420.0,0.55976704]
[1756777374363,0.6808,109430.0,109420.0,0.55976704]
[1756777374561,0.6828,109430.0,109420.0,0.55976704]
[1756777375367,0.6828,109430.0,109420.0,0.04701]
[1756777375568,0.6828,109430.0,109420.0,0.28554352]
[1756777375975,0.6828,109430.0,109420.0,0.32123352]
[1756777376162,0.6828,109430.0,109420.0,0.55976704]
[1756777381462,0.322,109430.0,109420.0,1.04830056]
[1756777381763,0.012,109430.0,109420.0,1.04830056]
[1756777381961,0.012,109430.0,109420.0,0.80976704]
[1756777382377,0.002,109430.0,109420.0,0.80976704]
[1756777384072,0.92033352,109430.0,109420.0,0.04701]
[1756777384272,0.92033352,109430.0,109420.0,0.28554352]
[1756777384770,0.6818,109430.0,109420.0,0.32123352]
[1756777385372,0.92033352,109430.0,109420.0,0.32123352]
[1756777385571,0.92033352,109430.0,109420.0,0.28554352]
[1756777385971,0.62033352,109430.0,109420.0,0.04701]
[1756777386171,0.97033352,109430.0,109420.0,0.32148352]
[1756777386380,0.3618,109430.0,109420.0,0.56001704]
[1756777386583,0.7418,109430.0,109420.0,0.56001704]
[1756777386769,0.3618,109430.0,109420.0,0.56001704]
[1756777386968,0.7218,109430.0,109420.0,0.56001704]
[1756777387170,0.3618,109430.0,109420.0,0.56001704]
[1756777387873,0.3618,109430.0,109420.0,0.08295]
[1756777388072,0.3618,109430.0,109420.0,0.56001704]
[1756777388473,0.7218,109430.0,109420.0,0.56001704]
[1756777388672,0.6718,109430.0,109420.0,0.56001704]
[1756777388876,0.7018,109430.0,109420.0,0.56001704]
[1756777389478,0.7018,109430.0,109420.0,0.08295]
[1756777389780,0.7318,109430.0,109420.0,0.56001704]
[1756777390980,0.7318,109430.0,109420.0,0.08295]
[1756777391181,0.7318,109430.0,109420.0,0.56001704]
[1756777392084,0.3818,109430.0,109420.0,0.56001704]
[1756777392281,0.7418,109430.0,109420.0,0.08295]
[1756777392581,0.7418,109430.0,109420.0,0.56001704]
[1756777393184,0.3618,109430.0,109420.0,0.56001704]
[1756777393378,0.3818,109430.0,109420.0,0.56001704]
[1756777393682,0.7621687,109430.0,109420.0,0.56001704]
[1756777395784,0.3821687,109430.0,109420.0,0.56001704]
[1756777398980,0.3821687,109430.0,109420.0,0.08295]
[1756777399176,0.3821687,109430.0,109420.0,0.56001704]
[1756777400182,0.3821687,109430.0,109420.0,0.08295]
[1756777400484,0.3821687,109430.0,109420.0,0.56001704]
[1756777402186,0.3821687,109430.0,109420.0,0.08295]
[1756777402486,0.3821687,109430.0,109420.0,0.56001704]
[1756777406594,0.3821687,109430.0,109420.0,0.92847]
[1756777406786,0.70217843,109430.0,109420.0,1.40553704]
[1756777406980,0.94071195,109430.0,109420.0,0.0232]
[1756777407186,2.03623195,109430.0,109410.0,0.32264352]
[1756777407387,0.3608,109420.0,109410.0,0.08411]
[1756777407689,0.71117843,109420.0,109410.0,0.32264352]
[1756777407895,0.38117843,109420.0,109410.0,0.32264352]
[1756777409599,0.38117843,109420.0,109410.0,0.32239865]
[1756777410099,0.96946708,109420.0,109400.0,0.07471]
[1756777410295,0.3608,109410.0,109400.0,0.33616865]
[1756777410993,0.38118213,109410.0,109400.0,0.33616865]
[1756777411398,0.38118213,109410.0,109400.0,0.34116865]
[1756777412296,0.38118213,109410.0,109400.0,1.1994573]
[1756777412297,0.02038213,109410.0,109400.0,1.1994573]
[1756777412501,0.37951881,109440.0,109430.0,0.08411]
[1756777412702,0.70118036,109440.0,109430.0,0.32239865]
[1756777414198,0.70118036,109440.0,109430.0,0.32339865]
[1756777414400,0.70118036,109440.0,109430.0,0.32439865]
[1756777416096,0.34038036,109440.0,109430.0,0.32439865]
[1756777416295,0.32,109440.0,109430.0,0.8126873]
[1756777416496,0.3608,109450.0,109440.0,0.08291]
[1756777416696,0.75118753,109450.0,109440.0,1.16847865]
[1756777417496,0.75118753,109450.0,109440.0,0.32119865]
[1756777418596,0.75118753,109450.0,109440.0,0.04866]
[1756777419095,0.75118753,109450.0,109440.0,0.28694865]
[1756777420205,0.98947618,109450.0,109430.0,0.08291]
[1756777420406,0.3608,109440.0,109430.0,0.08291]
[1756777420606,0.75118753,109440.0,109430.0,0.32119865]
[1756777420908,0.38118753,109440.0,109430.0,0.32119865]
[1756777421308,0.3608,109440.0,109430.0,0.32119865]
[1756777421909,0.3808,109440.0,109430.0,0.32119865]
[1756777422209,0.3608,109440.0,109430.0,0.32119865]
[1756777422404,0.3608,109440.0,109430.0,0.32219865]
[1756777423204,0.3608,109440.0,109430.0,0.32119865]
[1756777423407,0.3608,109440.0,109430.0,0.32319865]
[1756777423603,0.6808,109440.0,109430.0,0.32319865]
[1756777423809,0.3608,109440.0,109430.0,0.28894865]
[1756777424411,0.3608,109440.0,109430.0,0.32319865]
[1756777426603,0.37934174,109450.0,109440.0,0.03425]
[1756777426808,0.71971529,109450.0,109440.0,0.32119865]
[1756777427004,0.71971529,109450.0,109440.0,0.08291]
[1756777427209,0.71971529,109450.0,109440.0,0.32119865]
[1756777431607,0.69934174,109450.0,109440.0,0.5594873]
[1756777431808,0.69934174,109450.0,109440.0,0.32119865]
[1756777432004,0.33854174,109450.0,109440.0,0.32119865]
[1756777432204,0.69934174,109450.0,109440.0,0.32119865]
[1756777432715,0.33854174,109450.0,109440.0,0.32119865]
[1756777432912,0.69934174,109450.0,109440.0,0.32119865]
[1756777433419,0.33854174,109450.0,109440.0,0.32119865]
[1756777433623,0.33854174,109450.0,109440.0,0.6250644]
[1756777433921,0.33854174,109450.0,109440.0,0.38677575]
[1756777438019,0.69934174,109450.0,109440.0,0.02414]
[1756777438414,0.69934174,109450.0,109440.0,0.04866]
[1756777439910,0.69934174,109450.0,109440.0,0.32119865]
[1756777440115,0.69934174,109450.0,109440.0,0.08291]
[1756777440321,0.69934174,109450.0,109440.0,0.32119865]
[1756777443637,0.7196654,109450.0,109440.0,0.04866]
[1756777443820,0.7196654,109450.0,109440.0,0.32119865]
[1756777445021,0.7196654,109450.0,109440.0,0.04866]
[1756777445323,0.7196654,109450.0,109440.0,0.32076865]
[1756777450432,0.7196654,109450.0,109440.0,0.08248]
[1756777450630,0.7196654,109450.0,109440.0,0.32076865]
[1756777453325,0.70112366,109450.0,109440.0,0.32076865]
[1756777453530,0.6808,109450.0,109440.0,0.5797165]
[1756777453929,0.6808,109450.0,109440.0,0.34142785]
[1756777454927,0.6808,109450.0,109440.0,0.5797165]
[1756777455128,0.6808,109450.0,109440.0,1.6801965]
[1756777455331,0.1,109450.0,109440.0,2.1533194]
[1756777455535,0.1,109450.0,109440.0,2.0957736]
[1756777455833,0.3608,109460.0,109450.0,0.09618]
[1756777456024,0.3608,109460.0,109450.0,0.40890698]
[1756777456225,0.01869097,109470.0,109460.0,0.08241]
[1756777456433,0.3608,109480.0,109460.0,1.92700968]
[1756777456733,0.7408,109480.0,109470.0,0.32069865]
[1756777456938,0.38,109480.0,109470.0,0.32069865]
[1756777457230,0.7408,109480.0,109470.0,0.08241]
[1756777457433,0.38,109480.0,109470.0,0.32069865]
[1756777457836,0.7408,109480.0,109470.0,0.32069865]
[1756777458037,0.38,109480.0,109470.0,0.32069865]
[1756777458537,0.7408,109480.0,109470.0,0.32069865]
[1756777459236,0.38,109480.0,109470.0,0.32069865]
[1756777459433,0.7408,109480.0,109470.0,0.32069865]
[1756777459737,0.38,109480.0,109470.0,0.32069865]
[1756777459932,0.7408,109480.0,109470.0,0.32069865]
[1756777461643,0.7408,109480.0,109470.0,1.33601956]
[1756777461644,0.38,109480.0,109470.0,1.33601956]
[1756777461827,0.44259754,109530.0,109510.0,0.03382]
[1756777462028,0.44259754,109530.0,109520.0,0.68351865]
[1756777462334,0.44259754,109530.0,109520.0,0.71733865]
[1756777462729,0.08179754,109530.0,109520.0,0.32069865]
[1756777462938,0.76259754,109530.0,109520.0,1.17053865]
[1756777463236,0.76259754,109530.0,109520.0,0.32069865]
[1756777463442,0.07314,109520.0,109510.0,0.34103591]
[1756777463641,0.07314,109520.0,109510.0,1.19071591]
[1756777464143,0.07314,109520.0,109510.0,1.19187591]
[1756777464844,0.07314,109520.0,109510.0,0.34103591]
[1756777465143,0.07514,109520.0,109510.0,1.19223591]
[1756777466338,0.07514,109520.0,109510.0,1.19203591]
[1756777466738,0.07514,109520.0,109510.0,1.19183591]
[1756777467046,0.07514,109520.0,109510.0,1.19163591]
[1756777467544,0.07514,109520.0,109510.0,0.66103591]
[1756777467742,0.07514,109520.0,109510.0,1.51163591]
[1756777468646,0.07514,109520.0,109510.0,1.51147591]
[1756777468849,0.07514,109520.0,109510.0,1.51119591]
[1756777470147,0.002,109520.0,109510.0,0.66103591]
[1756777470347,0.002,109520.0,109510.0,1.51147591]
[1756777471152,0.002,109520.0,109510.0,0.66103591]
[1756777471343,0.002,109520.0,109510.0,1.51103591]
[1756777471545,0.02478,109520.0,109510.0,1.74840156]
[1756777471744,0.002,109520.0,109510.0,1.74840156]
[1756777471956,0.0298,109520.0,109510.0,1.74840156]
[1756777472654,0.002,109520.0,109510.0,1.27274726]
[1756777472858,0.002,109520.0,109510.0,1.67840156]
[1756777473045,0.002,109520.0,109510.0,2.13050886]
[1756777473246,0.02896892,109540.0,109530.0,0.08241]
[1756777473547,0.01996326,109540.0,109530.0,1.72537161]
[1756777473742,0.01996326,109540.0,109530.0,2.59756246]
[1756777473937,0.01996326,109540.0,109530.0,1.64396101]
[1756777474147,0.01996326,109540.0,109530.0,2.36961531]
[1756777474347,0.01996326,109540.0,109530.0,1.79993531]
[1756777474743,0.01996326,109540.0,109530.0,2.39993531]
[1756777474952,0.01996326,109540.0,109530.0,1.79993531]
[1756777475156,0.06806326,109540.0,109530.0,1.44165531]
[1756777475450,0.04384326,109540.0,109530.0,1.80245531]
[1756777475649,0.01996326,109540.0,109530.0,1.80245531]
[1756777475851,0.01996326,109540.0,109530.0,1.80345531]
[1756777476047,0.01996326,109540.0,109530.0,1.32780101]
[1756777476251,0.001,109550.0,109530.0,2.56746246]
[1756777476453,0.0769,109560.0,109550.0,0.06179]
[1756777476748,0.4377,109560.0,109550.0,0.06179]
[1756777476945,0.44701396,109560.0,109550.0,0.32034715]
[1756777477146,1.03701396,109560.0,109550.0,0.28602715]
[1756777477345,0.98484111,109560.0,109550.0,0.28602715]
[1756777477543,0.93484111,109560.0,109550.0,0.0482]
[1756777477750,0.0769,109540.0,109530.0,0.08352]
[1756777477946,0.4089,109540.0,109530.0,0.32034715]
[1756777478259,0.3608,109550.0,109540.0,0.03432]
[1756777478556,0.5477,109550.0,109540.0,0.08252]
[1756777478744,0.7477,109550.0,109540.0,0.5581743]